bitfinex/quotes_ETHUSD_20220305
["timestamp","ask_amount","ask_price","bid_price","bid_amount"]
[1646520051922,0.00172678,2664.5,2664.2,0.00309286]
[1646520052223,15.346,2664.6,2664.2,0.00309286]
[1646520052824,15.346,2664.6,2663.7,0.49671754]
[1646520053125,0.00172678,2664.5,2664.2,0.00309286]
[1646520053325,15.346,2664.6,2664.2,0.00309286]
[1646520054127,15.346,2664.6,2663.7,0.49671754]
[1646520054426,0.00172678,2664.5,2664.2,0.00309286]
[1646520054627,15.346,2664.6,2664.2,0.00309286]
[1646520055279,15.346,2664.6,2663.7,0.49671754]
[1646520055478,0.00172678,2664.5,2664.2,0.00309286]
[1646520055779,15.346,2664.6,2663.7,0.4498104]
[1646520055976,0.00172678,2664.5,2663.7,0.4498104]
[1646520057980,0.00172678,2664.5,2664.0,0.00309525]
[1646520058177,15.346,2664.6,2664.0,0.00309525]
[1646520058920,15.346,2664.6,2663.9,0.01076149]
[1646520059124,0.00172678,2664.5,2664.1,0.00309525]
[1646520059326,15.346,2664.6,2664.1,0.00309525]
[1646520060130,15.346,2664.6,2663.9,0.01076149]
[1646520060327,15.346,2664.6,2664.1,0.00309527]
[1646520061332,15.346,2664.6,2663.9,0.01076149]
[1646520061531,15.346,2664.6,2664.1,0.00309273]
[1646520062434,15.346,2664.6,2663.9,0.46057189]
[1646520062675,15.346,2664.6,2664.1,0.00309273]
[1646520063675,15.346,2664.6,2664.0,0.4498104]
[1646520063875,15.346,2664.6,2664.1,0.00309273]
[1646520064075,15.346,2664.6,2664.1,9.273e-05]
[1646520064478,15.346,2664.6,2664.1,0.44990313]
[1646520064677,0.00172678,2664.5,2664.1,0.44990313]
[1646520064876,15.346,2664.6,2664.1,0.4498104]
[1646520065479,15.346,2664.6,2664.2,0.4498104]
[1646520065679,0.00172678,2664.5,2664.2,0.4498104]
[1646520065881,15.346,2664.6,2664.2,0.4498104]
[1646520066523,15.346,2664.6,2663.4,0.4498104]
[1646520066723,0.00172678,2664.5,2663.4,0.4498104]
[1646520068726,0.00172678,2664.5,2663.8,0.00352094]
[1646520068924,15.34772678,2664.6,2663.8,0.00352094]
[1646520069528,15.34772678,2664.6,2663.4,0.4498104]
[1646520069930,15.34772678,2664.6,2664.0,0.0035209]
[1646520070175,15.346,2664.6,2664.0,0.0035209]
[1646520070583,16.346,2664.6,2664.0,0.0035209]
[1646520070779,16.346,2664.6,2663.4,0.4498104]
[1646520070983,11.846,2664.4,2664.0,0.00352096]
[1646520071178,11.47,2664.2,2664.0,0.00352096]
[1646520071982,11.47,2664.2,2663.4,0.4498104]
[1646520072179,3.5,2664.1,2664.0,0.00352084]
[1646520072380,11.47,2664.2,2664.0,0.00352084]
[1646520073193,11.47,2664.2,2663.4,0.4498104]
[1646520073383,3.5,2664.1,2664.0,0.00341521]
[1646520073583,11.47,2664.2,2664.0,1.521e-05]
[1646520073783,3.5,2664.1,2664.0,1.521e-05]
[1646520074425,3.5,2664.1,2663.6,0.01089055]
[1646520075027,11.47,2664.2,2663.6,0.01089055]
[1646520075429,3.5,2664.1,2663.6,0.01089055]
[1646520076328,11.47,2664.2,2663.6,0.01089055]
[1646520077029,11.47,2664.2,2663.8,0.00352098]
[1646520078174,11.47,2664.2,2663.6,0.01089055]
[1646520078379,11.47,2664.2,2663.9,0.00352091]
[1646520079177,11.47,2664.2,2663.8,0.01080451]
[1646520079680,11.47,2664.2,2663.9,0.00352094]
[1646520080480,11.47,2664.2,2663.8,0.01080451]
[1646520080681,11.47,2664.2,2663.9,0.00352094]
[1646520081723,11.47,2664.2,2663.8,0.01080451]
[1646520081924,11.47,2664.2,2663.9,0.00340211]
[1646520082925,11.47,2664.2,2663.8,0.01080451]
[1646520083124,11.42,2664.2,2663.9,0.00340211]
[1646520084126,11.42,2664.2,2663.3,0.4498104]
[1646520084327,11.42,2664.2,2663.9,0.00340211]
[1646520085376,11.42,2664.2,2663.3,0.9898104]
[1646520085576,3.5,2664.1,2663.9,0.00340612]
[1646520085774,11.42,2664.2,2663.9,0.00340612]
[1646520086374,11.42,2664.2,2663.3,0.9898104]
[1646520086575,11.42,2664.2,2663.9,0.00340612]
[1646520087578,11.42,2664.2,2663.3,0.9898104]
[1646520087776,3.5,2664.1,2663.9,0.00340612]
[1646520087978,11.42,2664.2,2663.9,0.00340612]
[1646520088782,3.5,2664.1,2663.3,0.9898104]
[1646520089221,3.5,2664.1,2663.9,0.00328967]
[1646520089423,11.42,2664.2,2663.9,0.00328967]
[1646520090022,11.42,2664.2,2663.3,0.9898104]
[1646520090224,3.5,2664.1,2663.9,0.00328967]
[1646520090425,11.42,2664.2,2663.9,0.00328967]
[1646520091225,11.42,2664.2,2663.3,0.9898104]
[1646520091433,3.5,2664.1,2663.3,0.9898104]
[1646520091626,3.5,2664.1,2663.9,0.00328967]
[1646520091826,11.42,2664.2,2663.9,0.00328967]
[1646520092226,14.92,2664.1,2663.9,0.00328967]
[1646520092428,3.5,2664.0,2663.2,0.67049698]
[1646520092680,3.5,2664.0,2663.9,0.00307374]
[1646520093682,3.5,2664.0,2663.2,0.67049698]
[1646520093882,3.5,2664.0,2663.8,0.00307374]
[1646520094784,3.5,2664.0,2663.2,0.67049698]
[1646520095185,3.5,2664.0,2663.8,0.00307377]
[1646520095590,11.42,2664.1,2663.8,0.00307377]
[1646520095788,3.5,2664.0,2663.8,0.00307377]
[1646520095990,3.5,2664.0,2663.2,0.67049698]
[1646520096435,3.5,2664.0,2663.8,0.00308063]
[1646520096633,11.42,2664.1,2663.8,0.00308063]
[1646520097032,3.5,2664.0,2663.8,0.00308063]
[1646520097227,3.5,2664.0,2663.2,0.67049698]
[1646520097429,3.5,2664.0,2663.8,0.00309516]
[1646520098030,3.5,2664.0,2663.2,0.66739335]
[1646520098431,3.5,2664.0,2663.2,1.20739335]
[1646520098830,3.5,2664.0,2663.9,0.01076149]
[1646520099032,11.42,2664.1,2663.9,0.01076149]
[1646520099335,3.5,2664.0,2663.9,0.01076149]
[1646520099932,14.92,2664.0,2663.9,0.01076149]
[1646520100172,14.92,2664.0,2663.9,6.149e-05]
[1646520100378,15.296,2664.0,2663.9,6.149e-05]
[1646520100975,11.796,2664.0,2663.9,6.149e-05]
[1646520101176,15.296,2664.0,2663.9,6.149e-05]
[1646520101579,11.796,2664.0,2663.9,6.149e-05]
[1646520102379,15.296,2664.0,2663.9,6.149e-05]
[1646520102578,11.796,2664.0,2663.9,6.149e-05]
[1646520102979,15.296,2664.0,2663.9,6.149e-05]
[1646520103178,11.796,2664.0,2663.9,6.149e-05]
[1646520103379,15.296,2664.0,2663.9,6.149e-05]
[1646520103780,11.796,2664.0,2663.9,6.149e-05]
[1646520104025,11.796,2664.0,2663.7,0.0032964]
[1646520104227,15.296,2664.0,2663.7,0.0032964]
[1646520104431,11.796,2664.0,2663.2,1.20739335]
[1646520104627,11.42,2663.9,2663.2,1.20739335]
[1646520104828,11.42,2663.9,2663.7,9.64e-05]
[1646520105634,11.42,2663.9,2663.2,1.20739335]
[1646520105931,14.92,2663.9,2663.2,1.20739335]
[1646520106133,3.5,2663.9,2663.2,1.20739335]
[1646520106331,0.376,2664.0,2663.2,1.20739335]
[1646520106532,0.376,2664.1,2663.2,1.20739335]
[1646520106831,3.876,2664.0,2663.2,1.20739335]
[1646520107037,3.5,2663.9,2663.2,1.20739335]
[1646520107232,14.97,2663.9,2663.5,0.0016249]
[1646520107675,3.5,2663.9,2663.5,0.0016249]
[1646520107876,0.376,2664.0,2663.5,0.0016249]
[1646520108078,3.5,2663.9,2663.2,1.20739335]
[1646520108277,11.47,2663.9,2663.6,0.00162483]
[1646520108679,0.376,2664.0,2663.6,0.00162483]
[1646520109078,3.5,2663.9,2663.6,0.00162483]
[1646520109280,3.5,2663.9,2663.2,0.66739335]
[1646520109478,3.5,2663.9,2663.6,0.00329654]
[1646520110283,14.97,2663.9,2663.6,0.00329654]
[1646520110483,3.5,2663.9,2663.2,0.66739335]
[1646520110683,3.5,2663.9,2663.6,0.00341023]
[1646520111185,0.376,2664.0,2663.6,0.00341023]
[1646520111439,14.97,2663.9,2663.6,0.00341023]
[1646520111628,14.97,2663.9,2663.2,0.66739335]
[1646520111829,14.97,2663.9,2663.6,0.00341026]
[1646520112930,14.97,2663.9,2663.2,0.66739335]
[1646520113129,14.97,2663.9,2663.6,0.00341023]
[1646520114134,14.97,2663.9,2663.2,0.66739335]
[1646520114336,14.97,2663.9,2663.6,0.0032808]
[1646520115376,14.97,2663.9,2663.2,0.66739335]
[1646520115579,14.97,2663.9,2663.6,0.0032808]
[1646520116477,14.97,2663.9,2663.3,0.4498104]
[1646520116678,14.97,2663.9,2663.6,0.0032808]
[1646520117780,14.97,2663.9,2663.0,0.4498104]
[1646520119625,15.346,2663.9,2663.0,0.4498104]
[1646520120230,3.876,2663.9,2663.0,0.4498104]
[1646520120629,15.346,2663.9,2663.0,0.4498104]
[1646520120830,3.876,2663.9,2663.0,0.4498104]
[1646520121231,15.346,2663.9,2663.0,0.4498104]
[1646520121433,3.876,2663.9,2663.3,0.00351735]
[1646520122432,3.876,2663.9,2663.0,0.4498104]
[1646520122681,15.346,2663.9,2663.5,0.00351441]
[1646520123681,15.346,2663.9,2663.0,0.4498104]
[1646520123882,15.346,2663.9,2663.6,0.00351434]
[1646520124285,3.876,2663.9,2663.6,0.00351434]
[1646520124482,11.47,2663.8,2663.6,0.00351434]
[1646520124686,3.876,2663.9,2663.6,0.00351434]
[1646520124883,3.876,2663.9,2663.0,0.4498104]
[1646520125288,3.5,2663.9,2663.0,0.4498104]
[1646520125486,4.906,2664.0,2663.0,0.4498104]
[1646520125889,16.376,2664.0,2663.0,0.4498104]
[1646520126088,16.752,2664.0,2663.0,0.4498104]
[1646520126289,16.376,2664.0,2663.4,0.00351448]
[1646520126550,16.752,2664.0,2663.4,0.00351448]
[1646520127140,16.376,2664.0,2663.4,0.00351448]
[1646520127339,16.376,2664.0,2663.0,0.4498104]
[1646520127544,16.376,2664.0,2663.6,0.00351435]
[1646520127950,16.752,2664.0,2663.6,0.00351435]
[1646520128645,16.752,2664.0,2663.6,0.00351441]
[1646520128844,16.75082007,2664.0,2663.6,0.00351441]
[1646520129648,16.75082007,2664.0,2663.0,0.4498104]
[1646520129848,16.75082007,2664.0,2663.6,0.00351441]
[1646520130894,16.75082007,2664.0,2663.0,0.4498104]
[1646520131086,16.75082007,2664.0,2663.6,0.00339843]
[1646520132085,16.75082007,2664.0,2663.0,0.4498104]
[1646520132286,16.75082007,2664.0,2663.6,0.00339843]
[1646520133191,16.75082007,2664.0,2663.0,0.40320883]
[1646520133590,13.25082007,2664.0,2663.6,0.00339843]
[1646520133792,16.75082007,2664.0,2663.6,0.00339843]
[1646520134033,16.37482007,2664.0,2663.6,0.00339843]
[1646520134234,16.1883,2664.0,2663.6,0.00339843]
[1646520134434,16.1883,2664.0,2663.0,0.40320883]
[1646520134834,16.5643,2664.0,2663.0,0.40320883]
[1646520135846,16.56597618,2664.0,2663.0,0.40320883]
[1646520136837,16.56597618,2664.0,2663.0,17.22678988]
[1646520136838,1.2183,2664.0,2663.0,17.22678988]
[1646520137037,1.2183,2664.0,2663.2,0.40320883]
[1646520137038,1.21997618,2664.0,2663.2,0.40320883]
[1646520137538,4.90767618,2664.0,2663.2,0.40320883]
[1646520138004,1.406,2664.0,2663.2,0.40320883]
[1646520138198,11.47,2663.9,2663.2,0.40320883]
[1646520138404,11.47,2663.9,2663.5,0.00351441]
[1646520138800,14.97,2663.8,2663.5,0.00351441]
[1646520139201,14.97,2663.8,2663.3,0.40320883]
[1646520139400,14.97,2663.8,2663.5,0.00351445]
[1646520140404,14.97,2663.8,2662.9,0.40320883]
[1646520140802,14.97,2663.8,2663.5,0.00351445]
[1646520141010,14.97,2663.9,2663.5,0.00351445]
[1646520141629,14.97,2663.9,2662.9,0.40320883]
[1646520141829,14.97,2663.9,2663.5,0.00351448]
[1646520142829,14.97,2663.9,2662.9,0.40320883]
[1646520143030,14.97,2663.9,2663.5,0.00339587]
[1646520143835,14.97,2663.9,2662.9,0.3566047]
[1646520144042,0.03165101,2663.8,2662.9,0.3566047]
[1646520144444,0.03165101,2663.8,2663.5,0.00339587]
[1646520145187,0.03165101,2663.8,2662.9,0.3566047]
[1646520146783,0.03165101,2663.8,2663.2,0.00160253]
[1646520147681,0.03165101,2663.8,2662.9,0.3566047]
[1646520148082,0.03165101,2663.8,2663.4,0.00327902]
[1646520148930,0.03165101,2663.8,2662.9,0.3566047]
[1646520149126,15.1577,2663.9,2663.4,0.00327909]
[1646520149127,15.16097843,2663.9,2663.4,0.00327909]
[1646520149932,14.97327843,2663.9,2663.4,0.00327909]
[1646520150233,14.97,2663.9,2662.9,0.3566047]
[1646520150432,14.97328369,2663.9,2663.4,0.00328435]
[1646520151233,14.97,2663.9,2662.9,0.3566047]
[1646520151438,14.97,2663.9,2663.4,0.00328435]
[1646520151635,14.97328369,2663.9,2663.4,0.00328435]
[1646520152439,14.97,2663.9,2662.9,0.3566047]
[1646520152688,14.97167889,2663.9,2662.9,0.3566047]
[1646520152879,15.15937889,2663.9,2662.9,0.3566047]
[1646520153479,15.53537889,2663.9,2662.9,0.3566047]
[1646520153686,15.5337,2663.9,2662.9,0.3566047]
[1646520153885,15.53698318,2663.9,2663.3,0.00328396]
[1646520154687,0.02536605,2663.8,2663.3,0.00328396]
[1646520154887,0.02536605,2663.8,2662.9,0.3566047]
[1646520155089,0.02536605,2663.8,2663.4,0.00328396]
[1646520156088,0.02536605,2663.8,2662.9,0.8966047]
[1646520156289,0.02536605,2663.8,2663.4,0.00328396]
[1646520157331,0.02536605,2663.8,2662.9,0.8966047]
[1646520157531,0.02536605,2663.8,2663.4,0.0033468]
[1646520158533,0.02536605,2663.8,2662.9,0.8966047]
[1646520158733,0.02536605,2663.8,2663.4,0.0033468]
[1646520159738,0.02536605,2663.8,2662.9,0.8966047]
[1646520161188,0.02536605,2663.8,2663.2,0.00327431]
[1646520161990,0.02536605,2663.8,2662.9,0.8966047]
[1646520162392,0.02536605,2663.8,2663.4,0.00327422]
[1646520163191,0.02536605,2663.8,2662.9,0.8966047]
[1646520163594,0.02536605,2663.8,2663.4,0.00327429]
[1646520164435,0.02536605,2663.8,2662.9,0.8966047]
[1646520164830,0.02536605,2663.8,2663.4,0.0032791]
[1646520165632,0.02536605,2663.8,2662.9,0.8966047]
[1646520166036,0.02536605,2663.8,2663.4,0.0032791]
[1646520166835,0.02536605,2663.8,2662.9,0.8966047]
[1646520167040,0.02381778,2663.8,2662.9,0.8966047]
[1646520167237,0.02381778,2663.8,2663.4,0.0032791]
[1646520168091,0.02381778,2663.8,2662.9,0.8966047]
[1646520168389,0.02381778,2663.8,2663.4,0.00327877]
[1646520169389,0.02381778,2663.8,2662.9,0.8966047]
[1646520169695,0.02381778,2663.8,2663.4,0.00327877]
[1646520169989,11.84927811,2663.9,2663.4,0.00327877]
[1646520170590,11.846,2663.9,2662.9,0.8966047]
[1646520170790,11.84927814,2663.9,2663.4,0.0032788]
[1646520171092,13.0088598,2663.8,2663.4,0.0032788]
[1646520171292,11.47,2663.8,2663.4,0.0032788]
[1646520171733,11.47,2663.8,2662.9,0.8966047]
[1646520171931,11.47,2663.8,2663.4,0.00328693]
[1646520172933,11.47,2663.8,2662.9,0.8966047]
[1646520173133,11.47,2663.8,2663.4,0.00328693]
[1646520174139,11.47,2663.8,2662.9,0.8966047]
[1646520174339,11.47,2663.8,2663.4,0.00328693]
[1646520175195,11.47,2663.8,2663.4,0.00222207]
[1646520175390,11.47,2663.8,2662.9,0.8966047]
[1646520175589,11.47,2663.8,2663.4,0.00328638]
[1646520176490,11.47,2663.8,2662.9,0.8966047]
[1646520179129,11.47,2663.8,2663.2,0.00350922]
[1646520180137,11.47,2663.8,2662.9,0.8966047]
[1646520183987,11.47,2663.8,2663.2,0.0033413]
[1646520184987,11.47,2663.8,2662.9,0.8966047]
[1646520185190,11.47,2663.8,2663.3,0.00334126]
[1646520186194,11.47,2663.8,2662.9,0.8966047]
[1646520186430,11.47,2663.8,2663.3,0.00334128]
[1646520187332,11.47,2663.8,2662.9,0.8966047]
[1646520187534,11.47,2663.8,2663.3,0.00328915]
[1646520188535,11.47,2663.8,2662.9,0.8966047]
[1646520188739,11.47,2663.8,2663.3,0.00317639]
[1646520189738,11.47,2663.8,2662.9,0.8966047]
[1646520189940,11.47,2663.8,2663.3,0.00317639]
[1646520190198,11.47,2663.8,2662.9,0.89359709]
[1646520192484,11.47,2663.8,2663.2,0.00161112]
[1646520193285,11.47,2663.8,2662.9,0.89359709]
[1646520193487,11.47,2663.8,2663.1,0.35359709]
[1646520193688,1.2183,2664.0,2663.3,0.35359709]
[1646520193949,1.2183,2664.0,2663.5,0.35359709]
[1646520194156,2.31879549,2664.4,2663.6,0.89359709]
[1646520194356,1.53863375,2664.3,2663.6,0.89359709]
[1646520195255,2.31879549,2664.4,2663.9,0.35359709]
[1646520195462,2.3171,2664.4,2664.1,0.35359709]
[1646520195656,2.31879549,2664.4,2664.2,0.54]
[1646520195856,2.3171,2664.4,2664.3,0.35359709]
[1646520196258,2.3171,2664.4,2664.1,0.35359709]
[1646520196458,2.3171,2664.4,2664.3,0.35359709]
[1646520197359,2.3171,2664.4,2664.0,0.54]
[1646520197559,2.3171,2664.4,2664.1,0.35359709]
[1646520198390,2.32044457,2664.4,2664.1,0.35359709]
[1646520199490,2.3171,2664.4,2664.1,0.35359709]
[1646520199690,2.32049531,2664.4,2664.1,0.35359709]
[1646520200694,0.00169549,2664.7,2664.1,0.35359709]
[1646520200894,0.00169549,2664.7,2663.8,19.42893144]
[1646520200895,0.00339531,2664.4,2664.2,0.89359709]
[1646520201731,0.50169549,2664.8,2664.2,0.89359709]
[1646520202136,0.00339528,2664.4,2664.2,0.89359709]
[1646520203149,0.50169549,2664.8,2664.2,0.89359709]
[1646520203337,0.00350866,2664.4,2664.2,0.89359709]
[1646520204140,0.50169549,2664.8,2664.2,0.89359709]
[1646520204341,0.00350866,2664.4,2664.2,0.89359709]
[1646520205412,0.50169549,2664.8,2664.2,0.89359709]
[1646520205613,0.00350866,2664.4,2664.2,0.89359709]
[1646520206618,0.50169549,2664.8,2664.2,0.89359709]
[1646520206818,0.0035113,2664.4,2664.2,0.89359709]
[1646520207818,0.50169549,2664.8,2664.2,0.89359709]
[1646520208219,0.0035113,2664.4,2664.2,0.89359709]
[1646520208939,0.50169549,2664.8,2664.2,0.89359709]
[1646520209139,0.0035113,2664.4,2664.2,0.89359709]
[1646520210243,0.50169549,2664.8,2664.4,0.00146363]
[1646520210445,0.51362182,2664.8,2664.4,0.00146363]
[1646520211347,0.5,2664.8,2664.4,0.00146363]
[1646520211545,0.00340577,2664.7,2664.4,0.00146363]
[1646520212545,0.5,2664.8,2664.4,0.00146363]
[1646520212796,0.0034058,2664.7,2664.4,0.00146363]
[1646520213798,0.5,2664.8,2664.4,0.00146363]
[1646520213999,0.00305003,2664.7,2664.4,0.00146363]
[1646520215004,0.5,2664.8,2664.4,0.00146363]
[1646520215204,0.00162729,2664.7,2664.4,0.00146363]
[1646520216208,0.5,2664.8,2664.4,0.00146363]
[1646520218855,0.00328841,2664.7,2664.4,0.00146363]
[1646520219849,0.5,2664.8,2664.4,0.00146363]
[1646520220048,0.00328844,2664.7,2664.4,0.00146363]
[1646520220992,0.5,2664.8,2664.4,0.00146363]
[1646520221191,0.00328028,2664.7,2664.4,0.00146363]
[1646520221595,0.00328028,2664.7,2664.6,0.35359709]
[1646520221794,0.00328028,2664.7,2664.6,4.39359709]
[1646520221995,0.5,2664.8,2664.6,5.39359709]
[1646520222194,0.5,2664.8,2664.7,4.22959709]
[1646520222195,0.0001,2664.8,2664.7,4.22959709]
[1646520222397,0.0001,2664.8,2664.7,8.76296398]
[1646520222597,0.00169549,2665.8,2664.9,0.35359709]
[1646520222796,0.01311891,2665.2,2665.1,0.35359709]
[1646520222996,0.1875,2666.0,2665.1,4.39359709]
[1646520223198,0.1875,2666.0,2665.1,4.76959709]
[1646520223399,0.00169549,2666.0,2665.1,8.76296398]
[1646520223599,0.00168168,2665.3,2665.1,15.50796398]
[1646520223798,0.00672571,2665.7,2665.2,3.85359709]
[1646520224042,0.00672571,2665.7,2665.4,0.35359709]
[1646520224237,0.00672571,2665.7,2665.6,0.35359709]
[1646520224440,0.18919549,2666.2,2665.6,4.39153809]
[1646520224643,0.1875,2666.2,2665.6,4.39153809]
[1646520224841,3.37539549,2666.3,2665.6,4.39153809]
[1646520224842,3.37539549,2666.3,2665.6,5.39153809]
[1646520225747,3.32539549,2666.3,2665.6,5.39153809]
[1646520225943,2.11389549,2666.3,2665.6,5.39153809]
[1646520226142,2.11389549,2666.3,2665.9,0.93762]
[1646520226343,2.11389549,2666.3,2666.0,0.35153809]
[1646520226344,2.1122,2666.3,2666.0,0.35153809]
[1646520227145,2.1122,2666.3,2665.9,4.97762]
[1646520227146,2.1122,2666.3,2666.2,0.35153809]
[1646520227344,2.11386812,2666.3,2666.2,0.35153809]
[1646520228201,2.1122,2666.3,2666.2,0.35153809]
[1646520234143,2.0622,2666.3,2666.2,0.35153809]
[1646520234351,2.0622,2666.3,2666.2,0.37028507]
[1646520235992,0.00340466,2666.4,2666.2,0.37028507]
[1646520236193,0.00340466,2666.4,2666.3,0.35153809]
[1646520236394,0.00340466,2666.4,2666.3,0.89153809]
[1646520236593,7.37,2666.7,2666.3,0.89153809]
[1646520236795,0.00327064,2666.4,2666.3,0.89153809]
[1646520237002,7.37,2666.7,2666.3,0.89153809]
[1646520237796,0.00169549,2667.1,2666.3,0.89153809]
[1646520237996,6.12919549,2667.2,2666.6,1.28888809]
[1646520238196,6.12919549,2667.2,2666.8,0.35153809]
[1646520238197,3.3145,2667.2,2666.8,0.35153809]
[1646520238398,2.1126,2667.2,2666.9,0.35153809]
[1646520239240,2.11426037,2667.2,2666.9,0.35153809]
[1646520239438,1.96426037,2667.2,2666.9,0.35153809]
[1646520240250,1.9626,2667.2,2666.9,0.35153809]
[1646520240440,1.9661067,2667.2,2666.9,0.35153809]
[1646520241341,1.9626,2667.2,2666.9,0.35153809]
[1646520241743,0.0035067,2667.2,2667.1,0.35153809]
[1646520241944,0.0035067,2667.2,2667.1,0.89153809]
[1646520242544,0.005794,2667.6,2667.1,0.89153809]
[1646520242806,0.00166076,2667.3,2667.1,0.89153809]
[1646520243805,0.005794,2667.6,2667.1,0.89153809]
[1646520244204,0.00154928,2667.3,2667.1,0.89153809]
[1646520244408,0.00154928,2667.3,2667.2,1.28878809]
[1646520244621,0.00154928,2667.3,2667.2,1.82878809]
[1646520245004,0.005794,2667.6,2667.2,1.82878809]
[1646520245207,0.00339793,2667.4,2667.2,1.82878809]
[1646520246306,0.005794,2667.6,2667.2,1.82878809]
[1646520246538,0.00339789,2667.4,2667.2,1.82878809]
[1646520247543,0.005794,2667.6,2667.2,1.82878809]
[1646520247742,0.00339789,2667.4,2667.2,1.82878809]
[1646520248749,0.005794,2667.6,2667.2,1.82878809]
[1646520248947,0.00327799,2667.4,2667.2,1.82878809]
[1646520249747,0.005794,2667.6,2667.2,1.82878809]
[1646520249952,0.005794,2667.6,2667.3,0.02163865]
[1646520250187,0.00316331,2667.4,2667.3,0.91317674]
[1646520250991,0.005794,2667.6,2667.3,0.91317674]
[1646520251192,0.00316328,2667.5,2667.3,0.91317674]
[1646520252293,0.005794,2667.6,2667.3,0.91317674]
[1646520252598,0.00317515,2667.5,2667.3,0.91317674]
[1646520253397,0.005794,2667.6,2667.3,0.91317674]
[1646520253598,0.00311407,2667.5,2667.3,0.91317674]
[1646520254539,0.005794,2667.6,2667.3,0.91317674]
[1646520254945,0.00311407,2667.5,2667.3,0.91317674]
[1646520255847,0.005794,2667.6,2667.3,0.91317674]
[1646520256047,0.00311532,2667.5,2667.3,0.91317674]
[1646520256946,0.005794,2667.6,2667.3,0.91317674]
[1646520257447,0.00306384,2667.5,2667.3,0.91317674]
[1646520257697,9.85485894,2668.1,2667.3,0.91317674]
[1646520257894,9.86644694,2668.1,2667.3,0.91317674]
[1646520259496,13.36644694,2668.1,2667.3,0.91317674]
[1646520259696,13.31800844,2668.1,2667.3,0.91317674]
[1646520261096,13.69400844,2668.1,2667.3,0.91317674]
[1646520261541,13.69569151,2668.1,2667.3,0.91317674]
[1646520261744,25.35309151,2668.1,2667.4,0.35153809]
[1646520261941,11.846,2667.9,2667.2,0.02161561]
[1646520262141,11.846,2667.7,2667.2,0.02161561]
[1646520262342,0.376,2667.5,2667.2,1.561e-05]
[1646520262641,0.376,2667.5,2666.9,1.87461]
[1646520262642,0.376,2667.3,2666.9,1.87461]
[1646520262847,3.5,2667.4,2666.6,0.93752]
[1646520262848,0.376,2667.1,2666.6,0.93752]
[1646520263247,0.376,2667.1,2666.5,1.0]
[1646520263650,0.376,2667.1,2666.3,0.54]
[1646520263847,3.876,2667.0,2666.3,0.54]
[1646520264046,0.376,2667.0,2666.3,0.54]
[1646520264247,0.376,2666.8,2666.3,0.54]
[1646520264446,0.376,2666.8,2666.6,0.00350761]
[1646520265405,0.376,2667.0,2666.2,0.93766]
[1646520265601,0.376,2666.8,2666.2,0.93766]
[1646520265800,0.376,2666.8,2666.6,0.00350761]
[1646520266602,0.376,2666.8,2666.2,0.93766]
[1646520266900,0.376,2666.8,2666.6,0.00350761]
[1646520267907,0.376,2666.8,2666.2,0.93766]
[1646520268101,0.376,2666.8,2666.6,0.00350761]
[1646520269143,0.376,2666.8,2666.2,0.93766]
[1646520269341,11.846,2666.8,2666.6,0.00338923]
[1646520270346,11.846,2666.8,2666.2,0.93766]
[1646520270549,11.846,2666.8,2666.6,0.00338923]
[1646520271548,11.846,2666.8,2666.2,0.93766]
[1646520271747,11.846,2666.8,2666.6,0.00338923]
[1646520272549,0.376,2666.7,2666.6,0.00338923]
[1646520272794,0.376,2666.7,2666.2,0.93766]
[1646520272996,0.376,2666.7,2666.6,0.00326858]
[1646520273693,11.846,2666.8,2666.6,0.00326858]
[1646520273892,11.846,2666.8,2666.2,0.93766]
[1646520274092,0.376,2666.8,2666.5,0.00326861]
[1646520274292,11.846,2666.8,2666.5,0.00326861]
[1646520275097,11.846,2666.8,2666.2,0.93766]
[1646520275397,11.846,2666.8,2666.5,0.00326861]
[1646520276197,11.846,2666.8,2666.2,0.93766]
[1646520276448,11.846,2666.8,2666.5,0.00327676]
[1646520277541,11.846,2666.8,2666.2,0.93766]
[1646520277741,11.846,2666.8,2666.5,0.00327676]
[1646520278743,11.846,2666.8,2666.2,0.93766]
[1646520278942,11.846,2666.8,2666.5,0.00327676]
[1646520279945,11.846,2666.8,2666.2,0.93766]
[1646520280188,11.846,2666.8,2666.5,0.00327621]
[1646520280996,11.846,2666.8,2666.2,0.93766]
[1646520281400,0.37768307,2666.9,2666.5,0.00327621]
[1646520281596,0.376,2666.9,2666.2,0.93474536]
[1646520281797,0.376,2666.9,2666.2,1.47474536]
[1646520283800,0.376,2666.9,2666.4,0.00163592]
[1646520284642,0.376,2666.9,2666.2,0.93474536]
[1646520284844,0.376,2666.9,2666.4,0.00163592]
[1646520285047,15.1575,2667.0,2666.4,0.00163592]
[1646520285246,14.97,2667.0,2666.4,0.00163592]
[1646520285847,14.97,2667.0,2666.2,0.93474536]
[1646520286050,14.97,2667.0,2666.4,0.00327893]
[1646520287048,14.97,2667.0,2666.2,0.93474536]
[1646520287248,14.97,2667.0,2666.4,0.00333183]
[1646520287688,3.5,2667.0,2666.4,0.00333183]
[1646520288290,3.5,2667.0,2666.2,0.93474536]
[1646520288488,3.5,2667.0,2666.4,0.00333183]
[1646520289395,3.5,2667.0,2666.2,0.93474536]
[1646520289795,3.5,2667.0,2666.4,0.00333183]
[1646520290596,3.5,2667.0,2666.2,0.93474536]
[1646520290995,3.5,2667.0,2666.4,0.00327281]
[1646520291195,0.1874,2666.9,2666.4,0.00327281]
[1646520291837,0.1874,2666.9,2666.2,0.93474536]
[1646520292239,0.1874,2666.9,2666.4,0.00327278]
[1646520293042,0.1874,2666.9,2666.2,0.93474536]
[1646520293444,0.1874,2666.9,2666.4,0.00327278]
[1646520293645,3.6875,2667.0,2666.4,0.00327278]
[1646520294345,3.5,2667.0,2666.2,0.93474536]
[1646520294546,3.5,2667.0,2666.4,0.0032768]
[1646520295202,7.37168307,2667.1,2666.4,0.0032768]
[1646520295403,7.37,2667.1,2666.4,0.0032768]
[1646520295606,7.37,2667.1,2666.4,0.54]
[1646520295802,7.37,2667.1,2666.4,0.5432768]
[1646520296406,7.37,2667.1,2666.6,0.93752]